fUST/lending_fUST_20250605
["ID","MTS","AMOUNT","RATE_DAILY","PERIOD"]
[364271935,1749054643388,-1158.49,0.00021095,2]
[364271937,1749054643397,-684.7,0.00021095,2]
[364271938,1749054643406,-501.71,0.00021095,2]
[364271941,1749054643415,-1100.0,0.00021164,2]
[364271943,1749054643426,-1136.17715273,0.00021314,5]
[364271945,1749054643435,-501.06523105,0.00021332,2]
[364271947,1749054643445,-500.0,0.00021332,2]
[364271949,1749054643454,-500.0,0.00021332,2]
[364271951,1749054643463,-495.26,0.00021369,2]
[364271953,1749054643472,-784.55,0.00021369,2]
[364271955,1749054643482,-521.04,0.00021369,2]
[364271957,1749054643491,-440.0,0.00021369,2]
[364271959,1749054643500,-813.17,0.00021369,2]
[364271961,1749054643509,-440.0,0.00021369,2]
[364271963,1749054643519,-464.03,0.00021369,2]
[364271965,1749054643529,-1158.49,0.00021369,2]
[364271967,1749054643538,-684.7,0.00021369,2]
[364271968,1749054643547,-501.71,0.00021369,2]
[364271969,1749054643556,-1136.17715273,0.0002159,5]
[364271970,1749054643565,-500.0,0.00021607,2]
[364271971,1749054643574,-600.0,0.00021607,2]
[364271972,1749054643584,-500.0,0.00021607,2]
[364271973,1749054643593,-800.0,0.00021639,2]
[364271974,1749054643603,-495.26,0.00021643,2]
[364271975,1749054643612,-784.55,0.00021643,2]
[364271976,1749054643621,-521.04,0.00021643,2]
[364271977,1749054643632,-440.0,0.00021643,2]
[364271979,1749054643641,-813.17,0.00021643,2]
[364271981,1749054643651,-440.0,0.00021643,2]
[364271983,1749054643662,-464.03,0.00021643,2]
[364271985,1749054643671,-1158.49,0.00021643,2]
[364271987,1749054643680,-684.7,0.00021643,2]
[364271989,1749054643690,-501.71,0.00021643,2]
[364271991,1749054643699,-250.0,0.00021839,2]
[364271993,1749054643708,-500.0,0.0002184,2]
[364271995,1749054643717,-1136.17715273,0.00021866,6]
[364271997,1749054643727,-1000.0,0.0002188,2]
[364271999,1749054643736,-991.71526404,0.0002188,2]
[364272003,1749054643771,-456983.33736,0.00021916,2]
[364272005,1749054643781,-500.0,0.00021917,2]
[364272007,1749054643790,-495.26,0.00021917,2]
[364272009,1749054643800,-784.55,0.00021917,2]
[364272011,1749054643809,-521.04,0.00021917,2]
[364272013,1749054643818,-440.0,0.00021917,2]
[364272015,1749054643828,-813.17,0.00021917,2]
[364272017,1749054643837,-440.0,0.00021917,2]
[364272019,1749054643847,-464.03,0.00021917,2]
[364272021,1749054643856,-1158.49,0.00021917,2]
[364272023,1749054643865,-684.7,0.00021917,2]
[364272025,1749054643875,-501.71,0.00021917,2]
[364272027,1749054643884,-39189.75797033,0.00021946,2]
[364272029,1749054643893,-160.0,0.00021973,3]
[364272032,1749054643902,-99789.38,0.00022,7]
[364272035,1749054643912,-842.5625,0.00022,7]
[364272038,1749054643922,-10000.0,0.00022,2]
[364272041,1749054643931,-212.90465545,0.00022,7]
[364272044,1749054643941,-287.63485949,0.00022029,2]
[364272047,1749054643950,-199.73397981,0.00022029,2]
[364272050,1749054643959,-198.0,0.00022029,2]
[364272053,1749054643968,-154.2438045,0.00022029,2]
[364272056,1749054643978,-500.0,0.00022029,2]
[364272059,1749054643987,-151.0,0.00022029,2]
[364272062,1749054643995,-500.0,0.00022029,2]
[364272064,1749054644004,-151.0,0.00022029,2]
[364272067,1749054644013,-151.0,0.00022029,2]
[364272070,1749054644024,-182.00546711,0.00022029,2]
[364272073,1749054644033,-500.0,0.00022056,2]
[364272075,1749054644042,-500.0,0.00022056,2]
[364272078,1749054644051,-151.0,0.00022056,2]
[364272081,1749054644060,-151.0,0.00022056,2]
[364272084,1749054644069,-500.0,0.00022084,2]
[364272087,1749054644078,-500.0,0.00022084,2]
[364272089,1749054644087,-471.23588442,0.00022088,2]
[364272091,1749054644096,-55072.92,0.000221,2]
[364272093,1749054644105,-500.0,0.00022111,2]
[364272095,1749054644115,-252.45466841,0.00022111,2]
[364272097,1749054644125,-500.0,0.00022139,2]
[364272099,1749054644137,-1136.17715273,0.00022141,6]
[364272101,1749054644146,-800.0,0.00022143,2]
[364272103,1749054644155,-1000.0,0.00022155,2]
[364272105,1749054644164,-1200.0,0.00022155,2]
[364272107,1749054644174,-500.0,0.00022155,2]
[364272109,1749054644183,-185.15931013,0.00022165,2]
[364272111,1749054644193,-500.0,0.00022165,2]
[364272113,1749054644202,-500.0,0.00022165,2]
[364272115,1749054644216,-200.85488272,0.00022165,2]
[364272117,1749054644225,-500.0,0.00022165,2]
[364272119,1749054644235,-151.0,0.00022165,2]
[364272121,1749054644244,-500.0,0.00022166,2]
[364272123,1749054644253,-495.26,0.00022191,2]
[364272125,1749054644262,-784.55,0.00022191,2]
[364272127,1749054644271,-521.04,0.00022191,2]
[364272129,1749054644281,-440.0,0.00022191,2]
[364272130,1749054644291,-813.17,0.00022191,2]
[364272133,1749054644301,-172.84,0.00022191,2]
[364272134,1749054644311,-464.03,0.00022191,2]
[364272137,1749054644321,-1158.49,0.00022191,2]
[364272139,1749054644330,-684.7,0.00022191,2]
[364272142,1749054644348,-501.71,0.00022191,2]
[364272144,1749054644359,-500.0,0.00022192,2]
[364272146,1749054644368,-500.0,0.00022192,2]
[364272148,1749054644377,-500.0,0.00022192,2]
[364272150,1749054644387,-151.0,0.00022192,2]
[364272152,1749054644396,-500.0,0.00022193,2]
[364272154,1749054644406,-1370.56,0.000222,7]
[364272156,1749054644415,-500.0,0.0002222,2]
[364272158,1749054644424,-500.0,0.0002222,2]
[364272160,1749054644434,-500.0,0.0002222,2]
[364272162,1749054644443,-205.60639345,0.0002222,2]
[364272164,1749054644452,-500.0,0.00022221,2]
[364272166,1749054644462,-500.0,0.00022247,2]
[364272168,1749054644471,-500.0,0.00022247,2]
[364272170,1749054644480,-500.0,0.00022247,2]
[364272172,1749054644489,-500.0,0.00022248,2]
[364272174,1749054644499,-1100.0,0.0002226,2]
[364272176,1749054644508,-501.15096168,0.00022275,2]
[364272178,1749054644517,-500.0,0.00022275,2]
[364272180,1749054644527,-500.0,0.00022275,2]
[364272182,1749054644536,-500.0,0.00022276,2]
[364272184,1749054644545,-151.0,0.00022298,2]
[364272186,1749054644555,-500.0,0.00022302,2]
[364272188,1749054644564,-500.0,0.00022302,2]
[364272189,1749054644573,-500.0,0.00022303,2]
[364272192,1749054644583,-500.0,0.00022329,2]
[364272194,1749054644592,-500.0,0.00022329,2]
[364272196,1749054644601,-500.0,0.0002233,2]
[364272198,1749054644611,-500.0,0.00022357,2]
[364272200,1749054644620,-500.0,0.00022357,2]
[364272202,1749054644629,-162.0,0.00022358,2]
[364272204,1749054644639,-12500.0,0.00022367,2]
[364272206,1749054644648,-12500.0,0.00022369,2]
[364272208,1749054644657,-12500.0,0.00022376,2]
[364272210,1749054644666,-151.0,0.00022376,7]
[364272212,1749054644677,-500.0,0.00022384,2]
[364272214,1749054644685,-191.64349445,0.00022384,2]
[364272216,1749054644694,-1000.0,0.00022388,2]
[364272218,1749054644704,-500.0,0.00022412,2]
[364272220,1749054644714,-1136.17715273,0.00022417,7]
[364272222,1749054644723,-1500.0,0.00022427,2]
[364272224,1749054644733,-531.27793115,0.00022439,2]
[364272226,1749054644743,-500.0,0.00022465,2]
[364272228,1749054644754,-495.26,0.00022465,2]
[364272231,1749054644765,-784.55,0.00022465,2]
[364272233,1749054644777,-521.04,0.00022465,2]
[364272235,1749054644786,-440.0,0.00022465,2]
[364272237,1749054644796,-813.17,0.00022465,2]
[364272239,1749054644807,-464.03,0.00022465,2]
[364272241,1749054644817,-1158.49,0.00022465,2]
[364272243,1749054644827,-684.7,0.00022465,2]
[364272245,1749054644837,-501.71,0.00022465,2]
[364272247,1749054644846,-151.0,0.00022486,7]
[364272249,1749054644857,-151.0,0.00022486,7]
[364272252,1749054644867,-151.0,0.00022486,7]
[364272253,1749054644876,-151.0,0.00022486,7]
[364272255,1749054644886,-153.0,0.00022521,2]
[364272258,1749054644896,-572.7197194,0.00022521,2]
[364272260,1749054644909,-153.0,0.00022521,2]
[364272262,1749054644920,-161.24572,0.00022603,2]
[364272264,1749054644930,-500.0,0.00022643,2]
[364272266,1749054644940,-506.65956259,0.00022643,2]
[364272268,1749054644950,-500.0,0.00022643,2]
[364272270,1749054644960,-1136.17715273,0.00022693,7]
[364272272,1749054644970,-1500.0,0.00022703,2]
[364272274,1749054644979,-1800.0,0.00022703,2]
[364272276,1749054644989,-495.32,0.00022739,2]
[364272278,1749054644999,-784.55,0.00022739,2]
[364272280,1749054645010,-521.23,0.00022739,2]
[364272282,1749054645019,-440.0,0.00022739,2]
[364272284,1749054645032,-813.2824634,0.00022739,2]
[364272286,1749054645042,-464.04,0.00022739,2]
[364272288,1749054645053,-1158.59,0.00022739,2]
[364272291,1749054645063,-684.83464478,0.00022739,2]
[364272293,1749054645076,-501.8,0.00022739,2]
[364272295,1749054645087,-1895.31327686,0.00022873,2]
[364272297,1749054645097,-151.0,0.00022873,2]
[364272299,1749054645107,-207.4,0.00022873,2]
[364272301,1749054645117,-500.0,0.00022873,2]
[364272303,1749054645129,-500.0,0.00022873,2]
[364272305,1749054645146,-500.0,0.00022873,2]
[364272307,1749054645156,-500.0,0.00022873,2]
[364272309,1749054645166,-5000.0,0.00022873,2]
[364272311,1749054645182,-500.0,0.00022873,2]
[364272313,1749054645200,-500.0,0.00022873,2]
[364272315,1749054645219,-500.0,0.00022873,2]
[364272317,1749054645239,-500.0,0.00022873,2]
[364272319,1749054645249,-500.0,0.00022873,2]
[364272321,1749054645260,-500.0,0.00022873,2]
[364272323,1749054645270,-500.0,0.00022873,2]
[364272325,1749054645282,-500.0,0.00022873,2]
[364272327,1749054645292,-500.0,0.00022873,2]
[364272329,1749054645302,-500.0,0.00022873,2]
[364272331,1749054645311,-500.0,0.00022873,2]
[364272333,1749054645321,-1016.1556834,0.00022936,2]
[364272335,1749054645332,-1136.17715273,0.00022969,8]
[364272337,1749054645344,-2000.0,0.00022975,2]
[364272339,1749054645354,-3499.99999802,0.00023,2]
[364272341,1749054645365,-77346.01731175,0.00023,2]
[364272343,1749054645375,-248.29768602,0.00023,2]
[364272346,1749054645386,-253911.61388944,0.00023,2]
[364272347,1749054645396,-3023.01456812,0.00023,2]
[364272350,1749054645406,-500.0,0.00023013,2]
[364272352,1749054645419,-784.55,0.00023013,2]
[364272354,1749054645435,-440.0,0.00023013,2]
[364272356,1749054645453,-800.0,0.0002305,2]
[364272358,1749054645462,-276.6268367,0.00023068,2]
[364272360,1749054645472,-153.0,0.00023068,2]
[364272362,1749054645482,-153.0,0.00023068,2]
[364272364,1749054645492,-153.0,0.00023068,2]
[364272366,1749054645502,-223.52181891,0.00023083,2]
[364272368,1749054645512,-151.0,0.000231,5]
[364272370,1749054645522,-99789.38,0.000231,7]
[364272372,1749054645532,-500.0,0.00023191,2]
[364272374,1749054645541,-1000.0,0.00023191,2]
[364272376,1749054645551,-55072.92,0.000232,2]
[364272378,1749054645560,-364.4406513,0.00023205,2]
[364272380,1749054645570,-714.7715287,0.00023205,2]
[364272382,1749054645579,-1136.17715273,0.00023245,8]
[364272384,1749054645589,-600.0,0.0002325,2]
[364272386,1749054645599,-2400.0,0.00023251,2]
[364272388,1749054645608,-1980.129086,0.00023251,2]
[364272390,1749054645618,-784.55,0.00023287,2]
[364272392,1749054645627,-440.0,0.00023287,2]
[364272394,1749054645636,-318.37,0.00023287,2]
[364272396,1749054645646,-318.37,0.00023287,2]
[364272398,1749054645655,-318.37,0.00023287,2]
[364272400,1749054645665,-318.37,0.00023287,2]
[364272402,1749054645675,-318.37,0.00023287,2]
[364272404,1749054645685,-318.37,0.00023287,2]
[364272406,1749054645695,-318.37,0.00023287,2]
[364272408,1749054645704,-318.37,0.00023287,2]
[364272410,1749054645714,-318.37,0.00023287,2]
[364272412,1749054645724,-318.37,0.00023287,2]
[364272414,1749054645733,-318.37,0.00023287,2]
[364272416,1749054645743,-318.37,0.00023287,2]
[364272418,1749054645752,-318.37,0.00023287,2]
[364272420,1749054645761,-318.37,0.00023287,2]
[364272422,1749054645770,-318.37,0.00023287,2]
[364272424,1749054645782,-318.37,0.00023287,2]
[364272427,1749054645792,-318.37,0.00023287,2]
[364272429,1749054645802,-183.60593342,0.0002329,4]
[364272431,1749054645812,-183.60593342,0.0002329,4]
[364272433,1749054645822,-183.60593342,0.0002329,4]
[364272435,1749054645831,-183.60593342,0.0002329,4]
[364272437,1749054645841,-183.60593342,0.0002329,4]
[364272439,1749054645850,-183.60593342,0.0002329,4]
[364272441,1749054645860,-183.60593342,0.0002329,4]
[364272443,1749054645869,-183.60593342,0.0002329,4]
[364272445,1749054645879,-183.60593342,0.0002329,4]
[364272447,1749054645889,-183.60593342,0.0002329,4]
[364272449,1749054645898,-183.60593342,0.0002329,4]
[364272451,1749054645909,-183.60593342,0.0002329,4]
[364272453,1749054645921,-183.60593342,0.0002329,4]
[364272455,1749054645931,-183.60593342,0.0002329,4]
[364272457,1749054645941,-183.60593342,0.0002329,4]
[364272459,1749054645950,-183.60593342,0.0002329,4]
[364272461,1749054645960,-183.60593342,0.0002329,4]
[364272463,1749054645969,-183.60593342,0.0002329,4]
[364272465,1749054645979,-183.60593342,0.0002329,4]
[364272467,1749054645988,-183.6,0.0002329,4]
[364272469,1749054645998,-428.41384464,0.0002329,4]
[364272471,1749054646008,-428.41384464,0.0002329,4]
[364272473,1749054646017,-428.41384464,0.0002329,4]
[364272475,1749054646028,-428.41384464,0.0002329,4]
[364272477,1749054646038,-428.41384464,0.0002329,4]
[364272479,1749054646047,-428.41384464,0.0002329,4]
[364272481,1749054646056,-428.41384464,0.0002329,4]
[364272483,1749054646066,-428.41384464,0.0002329,4]
[364272485,1749054646076,-428.41384464,0.0002329,4]
[364272487,1749054646086,-428.41384464,0.0002329,4]
[364272489,1749054646096,-428.41384464,0.0002329,4]
[364272492,1749054646106,-428.41384464,0.0002329,4]
[364272494,1749054646115,-428.41384464,0.0002329,4]
[364272496,1749054646125,-428.41384464,0.0002329,4]
[364272499,1749054646138,-428.41384464,0.0002329,4]
[364272501,1749054646148,-428.41384464,0.0002329,4]
[364272503,1749054646157,-428.41384464,0.0002329,4]
[364272505,1749054646167,-428.41384464,0.0002329,4]
[364272508,1749054646177,-428.41384464,0.0002329,4]
[364272510,1749054646187,-428.41,0.0002329,4]
[364272512,1749054646198,-155.05478643,0.0002329,4]
[364272514,1749054646212,-155.05478643,0.0002329,4]
[364272516,1749054646222,-155.05478643,0.0002329,4]
[364272518,1749054646232,-155.05478643,0.0002329,4]
[364272520,1749054646242,-155.05478643,0.0002329,4]
[364272522,1749054646252,-155.05478643,0.0002329,4]
[364272524,1749054646261,-155.05478643,0.0002329,4]
[364272527,1749054646271,-155.05478643,0.0002329,4]
[364272529,1749054646283,-155.05478643,0.0002329,4]
[364272531,1749054646293,-155.05478643,0.0002329,4]
[364272533,1749054646304,-155.05478643,0.0002329,4]
[364272535,1749054646314,-155.05478643,0.0002329,4]
[364272537,1749054646324,-155.05,0.0002329,4]
[364272539,1749054646335,-235.16642608,0.0002329,4]
[364272541,1749054646344,-235.16642608,0.0002329,4]
[364272543,1749054646354,-235.16642608,0.0002329,4]
[364272545,1749054646368,-235.16642608,0.0002329,4]
[364272547,1749054646379,-235.16642608,0.0002329,4]
[364272549,1749054646389,-235.16642608,0.0002329,4]
[364272551,1749054646399,-235.16642608,0.0002329,4]
[364272554,1749054646409,-235.16642608,0.0002329,4]
[364272555,1749054646418,-235.16642608,0.0002329,4]
[364272558,1749054646431,-235.16642608,0.0002329,4]
[364272560,1749054646441,-235.16642608,0.0002329,4]
[364272562,1749054646451,-235.16642608,0.0002329,4]
[364272564,1749054646462,-235.16642608,0.0002329,4]
[364272566,1749054646471,-235.16642608,0.0002329,4]
[364272568,1749054646481,-235.16642608,0.0002329,4]
[364272570,1749054646491,-235.16642608,0.0002329,4]
[364272572,1749054646501,-235.16642608,0.0002329,4]
[364272574,1749054646511,-235.16642608,0.0002329,4]
[364272576,1749054646521,-235.16642608,0.0002329,4]
[364272578,1749054646532,-235.16,0.0002329,4]
[364272580,1749054646541,-296.96600972,0.0002329,4]
[364272582,1749054646551,-296.96600972,0.0002329,4]
[364272584,1749054646562,-296.96600972,0.0002329,4]
[364272587,1749054646572,-296.96600972,0.0002329,4]
[364272589,1749054646582,-296.96600972,0.0002329,4]
[364272591,1749054646592,-296.96600972,0.0002329,4]
[364272593,1749054646602,-296.96600972,0.0002329,4]
[364272595,1749054646612,-296.96600972,0.0002329,4]
[364272597,1749054646622,-296.96600972,0.0002329,4]
[364272599,1749054646633,-296.96600972,0.0002329,4]
[364272601,1749054646643,-296.96600972,0.0002329,4]
[364272603,1749054646654,-296.96600972,0.0002329,4]
[364272618,1749054646765,-296.96600972,0.0002329,4]
[364272620,1749054646786,-296.96600972,0.0002329,4]
[364272622,1749054646795,-296.96600972,0.0002329,4]
[364272624,1749054646805,-296.96600972,0.0002329,4]
[364272626,1749054646817,-296.96600972,0.0002329,4]
[364272628,1749054646827,-296.96600972,0.0002329,4]
[364272630,1749054646837,-296.96600972,0.0002329,4]
[364272632,1749054646847,-296.96,0.0002329,4]
[364272634,1749054646856,-692.92068935,0.0002329,4]
[364272636,1749054646866,-692.92068935,0.0002329,4]
[364272638,1749054646875,-692.92068935,0.0002329,4]
[364272640,1749054646884,-692.92068935,0.0002329,4]
[364272642,1749054646894,-692.92068935,0.0002329,4]
[364272644,1749054646904,-692.92068935,0.0002329,4]
[364272647,1749054646914,-692.92068935,0.0002329,4]
[364272649,1749054646924,-692.92068935,0.0002329,4]
[364272651,1749054646934,-692.92068935,0.0002329,4]
[364272652,1749054646944,-692.92068935,0.0002329,4]
[364272654,1749054646953,-692.92068935,0.0002329,4]
[364272657,1749054646963,-692.92068935,0.0002329,4]
[364272659,1749054646972,-692.92068935,0.0002329,4]
[364272661,1749054646984,-692.92068935,0.0002329,4]
[364272663,1749054646993,-692.92068935,0.0002329,4]
[364272665,1749054647003,-692.92068935,0.0002329,4]
[364272667,1749054647012,-692.92068935,0.0002329,4]
[364272669,1749054647022,-692.92068935,0.0002329,4]
[364272671,1749054647032,-692.92068935,0.0002329,4]
[364272673,1749054647041,-692.92,0.0002329,4]
[364272675,1749054647051,-176.6037853,0.00023342,2]
[364272677,1749054647059,-158.575084,0.00023342,2]
[364272679,1749054647069,-572.7197194,0.00023342,2]
[364272681,1749054647078,-158.575084,0.00023342,2]
[364272683,1749054647087,-176.6037853,0.00023342,2]
[364272685,1749054647097,-572.7197194,0.00023342,2]
[364272687,1749054647106,-176.6037853,0.00023342,2]
[364272689,1749054647116,-317.150168,0.00023342,2]
[364272691,1749054647126,-1100.0,0.00023356,2]
[364272693,1749054647140,-152.115,0.00023366,2]
[364272695,1749054647149,-250.0,0.00023366,2]
[364272697,1749054647159,-235.529,0.00023366,2]
[364272699,1749054647168,-216.455,0.00023366,2]
[364272700,1749054647178,-2200.0,0.00023373,2]
[364272702,1749054647187,-2229.0,0.00023416,2]
[364272705,1749054647197,-709.0,0.00023416,2]
[364272706,1749054647207,-495.838,0.00023416,2]
[364272709,1749054647217,-962.0,0.00023416,2]
[364272710,1749054647226,-5000.0,0.00023421,2]
[364272713,1749054647236,-600.0,0.00023492,2]
[364272714,1749054647244,-2816.83204157,0.000235,2]
[364272716,1749054647254,-250.00000099,0.000235,2]
[364272718,1749054647263,-152.17274105,0.00023507,2]
[364272720,1749054647273,-825.197195,0.0002352,3]
[364272722,1749054647282,-1136.17715273,0.00023521,9]
[364272724,1749054647292,-2500.0,0.00023523,2]
[364272726,1749054647301,-800.0,0.00023536,2]
[364272728,1749054647310,-784.55,0.00023561,2]
[364272730,1749054647320,-440.0,0.00023561,2]
[364272733,1749054647330,-318.37,0.00023561,2]
[364272734,1749054647339,-151.0,0.000236,10]
[364272737,1749054647349,-151.0,0.000236,7]
[364272739,1749054647358,-151.0,0.000236,7]
[364272740,1749054647367,-19186.22,0.00023669,9]
[364272743,1749054647377,-500.0,0.00023673,2]
[364272745,1749054647386,-546.72605437,0.00023673,2]
[364272747,1749054647395,-500.0,0.00023673,2]
[364272748,1749054647405,-500.0,0.00023673,2]
[364272751,1749054647415,-229.45591648,0.000237,3]
[364272753,1749054647424,-295736.51748491,0.000237,7]
[364272755,1749054647434,-151.0,0.000237,7]
[364272757,1749054647443,-152.650201,0.000237,7]
[364272758,1749054647452,-151.0,0.000237,7]
[364272761,1749054647462,-151.0,0.000237,7]
[364272762,1749054647471,-151.0,0.000237,7]
[364272764,1749054647480,-190.08815,0.000237,7]
[364272767,1749054647490,-1370.56,0.000237,7]
[364272769,1749054647500,-151.0,0.000237,7]
[364272770,1749054647509,-151.0,0.000237,7]
[364272772,1749054647519,-151.0,0.000237,7]
[364272774,1749054647529,-151.0,0.000237,7]
[364272776,1749054647539,-151.0,0.000237,7]
[364272778,1749054647548,-151.0,0.000237,7]
[364272780,1749054647557,-151.0,0.000237,7]
[364272782,1749054647567,-546.080657,0.000237,7]
[364272784,1749054647576,-546.080657,0.000237,7]
[364272786,1749054647585,-203.512286,0.000237,7]
[364272788,1749054647595,-151.0,0.000237,7]
[364272790,1749054647605,-151.0,0.000237,7]
[364272792,1749054647614,-201.332901,0.000237,7]
[364272794,1749054647623,-201.332901,0.000237,7]
[364272796,1749054647632,-323.734254,0.000237,2]
[364272798,1749054647642,-323.734254,0.000237,2]
[364272800,1749054647652,-151.0,0.000237,7]
[364272802,1749054647661,-151.0,0.000237,7]
[364272804,1749054647671,-151.0,0.000237,7]
[364272806,1749054647681,-151.0,0.000237,7]
[364272809,1749054647690,-151.0,0.000237,7]
[364272811,1749054647700,-623.70667292,0.00023739,2]
[364272812,1749054647709,-1136.17715273,0.00023797,9]
[364272814,1749054647718,-3000.0,0.00023799,2]
[364272816,1749054647728,-200.0,0.00023799,2]
[364272819,1749054647737,-206.53827738,0.00023799,2]
[364272821,1749054647747,-200.0,0.00023799,2]
[364272822,1749054647756,-509.29,0.000238,7]
[364272824,1749054647766,-4439.65,0.000238,9]
[364272826,1749054647775,-36622.46934136,0.000238,3]
[364272832,1749054647948,-151.0,0.00021916,2]
[364272834,1749054647958,-151.0,0.00022029,2]
[364272836,1749054647967,-62.4406513,0.00022521,2]
[364272848,1749054648075,-300.0,0.00020546,2]
[364272850,1749054648085,-420.0,0.0002236,2]
[364272852,1749054648094,-290.7669193,0.00022521,2]
[364272854,1749054648103,-158.575084,0.00022521,2]
[364272856,1749054648113,-1898.85258301,0.000229,2]
[364272857,1749054648122,-151.0,0.00023287,2]
[364272859,1749054648134,-1145.4394388,0.00023342,2]
[364272861,1749054648144,-7710.56772811,0.000238,3]
[364274232,1749054744713,167.934026,0.00013699,2]
[364274236,1749054863205,580.0,0.00025,30]
[364274238,1749055022572,200.0,0.00025,120]
[364274239,1749055034318,800.0,0.00025,30]
[364274240,1749055199340,734329.32666937,0.00025,30]
[364274241,1749055202918,19617.338,0.00015388,2]
[364274242,1749055260565,215.417918,0.00015388,2]
[364274259,1749055742178,167.259031,0.00013699,2]
[364274306,1749055831975,-300.0,0.00016437,2]
[364274308,1749055831985,-646.0,0.00016437,2]
[364274310,1749055831994,-275.77616446,0.00016438,2]
[364274312,1749055832003,-430.0,0.00016438,2]
[364274314,1749055832012,-156.51306352,0.00016438,2]
[364274316,1749055832022,-430.0,0.00016438,2]
[364274318,1749055832031,-331.78230289,0.00016438,2]
[364274320,1749055832041,-430.0,0.00016438,2]
[364274322,1749055832053,-440.0,0.00016438,2]
[364274324,1749055832062,-198.16767938,0.00016438,2]
[364274326,1749055832072,-440.0,0.00016438,2]
[364274328,1749055832081,-440.0,0.00016438,2]
[364274331,1749055832090,-440.0,0.00016438,2]
[364274334,1749055832100,-400.0,0.00016438,2]
[364274337,1749055832109,-430.0,0.00016438,2]
[364274340,1749055832118,-430.0,0.00016438,2]
[364274343,1749055832128,-440.0,0.00016438,2]
[364274346,1749055832137,-440.0,0.00016438,2]
[364274349,1749055832146,-430.0,0.00016438,2]
[364274352,1749055832156,-440.0,0.00016438,2]
[364274355,1749055832165,-1161.32,0.00016438,2]
[364274358,1749055832174,-443.66,0.00016438,2]
[364274361,1749055832183,-430.0,0.00016438,2]
[364274364,1749055832192,-440.0,0.00016438,2]
[364274367,1749055832202,-440.0,0.00016438,2]
[364274370,1749055832211,-440.0,0.00016438,2]
[364274373,1749055832221,-440.0,0.00016438,2]
[364274376,1749055832231,-430.0,0.00016438,2]
[364274379,1749055832240,-440.0,0.00016438,2]
[364274382,1749055832250,-430.0,0.00016438,2]
[364274385,1749055832259,-786.55,0.00016438,2]
[364274388,1749055832269,-942.56,0.00016438,2]
[364274391,1749055832278,-440.0,0.00016438,2]
[364274394,1749055832287,-440.0,0.00016438,2]
[364274397,1749055832297,-440.0,0.00016438,2]
[364274399,1749055832307,-440.0,0.00016438,2]
[364274401,1749055832317,-430.0,0.00016438,2]
[364274403,1749055832326,-440.0,0.00016438,2]
[364274405,1749055832335,-400.0,0.00016438,2]
[364274407,1749055832345,-430.0,0.00016438,2]
[364274409,1749055832354,-440.0,0.00016438,2]
[364274411,1749055832364,-430.0,0.00016438,2]
[364274413,1749055832373,-430.0,0.00016438,2]
[364274415,1749055832382,-430.0,0.00016438,2]
[364274417,1749055832392,-430.0,0.00016438,2]
[364274419,1749055832401,-440.0,0.00016438,2]
[364274421,1749055832410,-440.0,0.00016438,2]
[364274423,1749055832419,-560.65704578,0.00016438,2]
[364274425,1749055832430,-430.0,0.00016438,2]
[364274427,1749055832439,-527.96,0.00016438,2]
[364274429,1749055832449,-440.0,0.00016438,2]
[364274431,1749055832459,-430.0,0.00016438,2]